Workbook

Sheet 2017
A1: 2017年度新能源汽车推广应用补助资金清算审核车辆信息表
A2: 地区 | B2: 序号 | C2: 车辆生产企业 | D2: 车辆型号 | E2: 申报推广数 （辆） | F2: 申请补助标准 （万元） | G2: 申请清算资金 （万元） | H2: 核定推广数 （辆） | I2: 核定补助标准 （万元） | J2: 应清算补助资金 （万元） | K2: 按整车企业取整后补助资金（万元） | L2: 核减原因 | M2: 此前待扣回预拨资金（万元） | N2: 此次扣回预拨资金（万元） | O2: 扣回相应预拨资金后剩余资金（万元）
A3: 总计 | E3: =SUM(E4:E598)/3 -> 60841 | G3: 368195.4469 | H3: 34718 | J3: 247652.3993 | K3: =SUM(K4:K598)/2 -> 247652 | M3: =SUM(M4:M598)/2 -> 515243 | N3: =SUM(N4:N598)/2 -> 121322 | O3: =SUM(O4:O598)/2 -> 126330
A4: 北京市 | B4: 合计 | E4: =SUM(E5:E29)/2 -> 26757 | G4: 106578.7272 | H4: 5211 | J4: 23426.0992 | K4: =SUM(K5:K24) -> 23425 | M4: =SUM(M5:M24) -> 23484 | N4: =SUM(N5:N24) -> 21774 | O4: =SUM(O5:O24) -> 1651
B5: 1 | C5: 北京北方华德尼奥普兰客车股份有限公司 | D5: 小计 | E5: =SUM(E6:E8) -> 67 | G5: 1576.4632 | H5: 67 | J5: 1576.4632 | K5: =ROUND(J5,0) -> 1576 | M5: 0 | N5: 0 | O5: =K5-N5 -> 1576
D6: BFC6109GBEV2 | E6: 4 | F6: 29.8598 | G6: =E6*F6 -> 119.4392 | H6: 4 | I6: 29.8598 | J6: =H6*I6 -> 119.4392
D7: BFC6129GBEVS1 | E7: 20 | F7: 29.8512 | G7: =E7*F7 -> 597.024 | H7: 20 | I7: 29.8512 | J7: =H7*I7 -> 597.024
D8: BFC6809GBEV5 | E8: 43 | F8: 20 | G8: =E8*F8 -> 860 | H8: 43 | I8: 20 | J8: =H8*I8 -> 860
B9: 2 | C9: 北京华林特装车有限公司 | D9: 小计 | E9: =SUM(E10) -> 4 | G9: 27 | H9: 4 | J9: 27 | K9: =ROUND(J9,0) -> 27 | M9: 0 | N9: 0 | O9: =K9-N9 -> 27
D10: HLT5034CTYEV | E10: 4 | F10: 6.75 | G10: =E10*F10 -> 27 | H10: 4 | I10: 6.75 | J10: =H10*I10 -> 27
B11: 3 | C11: 北京汽车股份有限公司 | D11: 小计 | E11: =SUM(E12:E21) -> 5218 | G11: 22151.344 | H11: 5129 | J11: 21774.236 | K11: =ROUND(J11,0) -> 21774 | M11: 23484 | N11: =K11 -> 21774 | O11: =K11-N11 -> 0
D12: BJ5022XXYV3R2-BEV | E12: 234 | F12: 5.436 | G12: =E12*F12 -> 1272.024 | H12: 231 | I12: 5.436 | J12: =H12*I12 -> 1255.716 | L12: 核减3辆，原因为：车辆注册登记信息有误,需进一步核实后予以清算
D13: BJ5023XXYV3RK-BEV | E13: 51 | F13: 6.12 | G13: 312.12 | H13: 51 | I13: 6.12 | J13: 312.12
D14: BJ7000B3D5-BEV | E14: 1481 | F14: 3.6 | G14: 5331.6 | H14: 1459 | I14: 3.6 | J14: 5252.4 | L14: 核减22辆，原因为：车辆注册登记信息有误,需进一步核实后予以清算
D15: BJ7000C5E1-BEV | E15: 13 | F15: 3.6 | G15: 46.8 | H15: 13 | I15: 3.6 | J15: 46.8
D16: BJ7000C5E1-BEV | E16: 465 | F16: 4.4 | G16: 2046 | H16: 452 | I16: 4.4 | J16: 1988.8 | L16: 核减13辆，原因为：车辆注册登记信息有误,需进一步核实后予以清算
D17: BJ7000C5E2-BEV | E17: 1832 | F17: 4.4 | G17: 8060.8 | H17: 1792 | I17: 4.4 | J17: 7884.8 | L17: 核减40辆，原因为：车辆注册登记信息有误,需进一步核实后予以清算
D18: BJ7000C5E4-BEV | E18: 40 | F18: 4.84 | G18: 193.6 | H18: 40 | I18: 4.84 | J18: 193.6
D19: BJ7000C5E7-BEV | E19: 56 | F19: 4.84 | G19: 271.04 | H19: 56 | I19: 4.84 | J19: 271.04
D20: BJ7000C8G-BEV | E20: 34 | F20: 4.84 | G20: 164.56 | H20: 34 | I20: 4.84 | J20: 164.56
D21: BJ7000U3D2-BEV | E21: 1012 | F21: 4.4 | G21: 4452.8 | H21: 1001 | I21: 4.4 | J21: 4404.4 | L21: 核减11辆，原因为：车辆注册登记信息有误,需进一步核实后予以清算
B22: 4 | C22: 北京现代汽车有限公司 | D22: 小计 | E22: =SUM(E23) -> 11 | G22: 48.4 | H22: 11 | J22: 48.4 | K22: =ROUND(J22,0) -> 48 | M22: 0 | N22: 0 | O22: =K22-N22 -> 48
D23: BH7000BEVBA | E23: 11 | F23: 4.4 | G23: =E23*F23 -> 48.4 | H23: 11 | I23: 4.4 | J23: =H23*I23 -> 48.4
B24: 5 | C24: 北京新能源汽车股份有限公司 | D24: 小计 | E24: =SUM(E25:E29) -> 21457 | G24: 82775.52 | H24: 0 | J24: 0 | K24: =ROUND(J24,0) -> 0 | M24: 0 | N24: 0 | O24: =K24-N24 -> 0
D25: BJ7001BPH1-BEV | E25: 1959 | F25: 3.6 | G25: =E25*F25 -> 7052.4 | H25: 0 | I25: 0 | J25: =H25*I25 -> 0 | L25: 核减1959辆，原因为：现场核查不通过
D26: BJ7001BPH2-BEV | E26: 1330 | F26: 3.6 | G26: =E26*F26 -> 4788 | H26: 0 | I26: 0 | J26: =H26*I26 -> 0 | L26: 核减1330辆，原因为：现场核查不通过
D27: BJ7001BPH5-BEV | E27: 5611 | F27: 3.96 | G27: =E27*F27 -> 22219.56 | H27: 0 | I27: 0 | J27: =H27*I27 -> 0 | L27: 核减5611辆，原因为：现场核查不通过
D28: BJ7001BPH7-BEV | E28: 9751 | F28: 3.96 | G28: =E28*F28 -> 38613.96 | H28: 0 | I28: 0 | J28: =H28*I28 -> 0 | L28: 核减9751辆，原因为：现场核查不通过
D29: BJ7001BPH8-BEV | E29: 2806 | F29: 3.6 | G29: =E29*F29 -> 10101.6 | H29: 0 | I29: 0 | J29: =H29*I29 -> 0 | L29: 核减2806辆，原因为：现场核查不通过
A30: 河北省 | B30: 合计 | E30: =SUM(E31:E48)/2 -> 774 | G30: 4263.808 | H30: 769 | J30: 4244.368 | K30: =SUM(K31:K45) -> 4244 | M30: =SUM(M31:M45) -> 7940 | N30: =SUM(N31:N45) -> 25 | O30: =SUM(O31:O45) -> 4219
B31: 1 | C31: 长城汽车股份有限公司 | D31: 小计 | E31: =SUM(E32) -> 7 | G31: 25.2 | H31: 7 | J31: 25.2 | K31: =ROUND(J31,0) -> 25 | M31: 7940 | N31: =K31 -> 25 | O31: =K31-N31 -> 0
D32: CC7000CE00BEV | E32: 7 | F32: 3.6 | G32: =E32*F32 -> 25.2 | H32: 7 | I32: 3.6 | J32: =H32*I32 -> 25.2
B33: 2 | C33: 河北红星汽车制造有限公司 | D33: 小计 | E33: =SUM(E34:E36) -> 16 | G33: 96.208 | H33: 16 | J33: 96.208 | K33: =ROUND(J33,0) -> 96 | M33: 0 | N33: 0 | O33: =K33-N33 -> 96
D34: HX5021XXYVEV | E34: 6 | F34: 4.992 | G34: =E34*F34 -> 29.952 | H34: 6 | I34: 4.992 | J34: =H34*I34 -> 29.952
D35: HX5029XXYAVEV | E35: 6 | F35: 4.896 | G35: =E35*F35 -> 29.376 | H35: 6 | I35: 4.896 | J35: =H35*I35 -> 29.376
D36: HX5041XXYVEV | E36: 4 | F36: 9.22 | G36: =E36*F36 -> 36.88 | H36: 4 | I36: 9.22 | J36: =H36*I36 -> 36.88
B37: 3 | C37: 河北中兴汽车制造有限公司 | D37: 小计 | E37: =SUM(E38:E39) -> 6 | G37: 43.96 | H37: 6 | J37: 43.96 | K37: =ROUND(J37,0) -> 44 | M37: 0 | N37: 0 | O37: =K37-N37 -> 44
D38: BQ1030E1BEV | E38: 2 | F38: 6.24 | G38: =E38*F38 -> 12.48 | H38: 2 | I38: 6.24 | J38: =H38*I38 -> 12.48
D39: BQ1030E2BEV | E39: 4 | F39: 7.87 | G39: =E39*F39 -> 31.48 | H39: 4 | I39: 7.87 | J39: =H39*I39 -> 31.48
B40: 4 | C40: 领途汽车有限公司 | D40: 小计 | E40: =SUM(E41:E44) -> 643 | G40: 2512.44 | H40: 638 | J40: 2493 | K40: =ROUND(J40,0) -> 2493 | M40: 0 | N40: 0 | O40: =K40-N40 -> 2493
D41: YGM6350BEV | E41: 94 | F41: 3.6 | G41: =E41*F41 -> 338.4 | H41: 93 | I41: 3.6 | J41: =H41*I41 -> 334.8 | L41: 核减1辆，原因为：车辆注册登记信息有误
D42: YGM6371BEV | E42: 303 | F42: 3.96 | G42: =E42*F42 -> 1199.88 | H42: 301 | I42: 3.96 | J42: =H42*I42 -> 1191.96 | L42: 核减2辆，原因为：车辆注册登记信息有误
D43: YGM6372BEV | E43: 209 | F43: 3.96 | G43: =E43*F43 -> 827.64 | H43: 207 | I43: 3.96 | J43: =H43*I43 -> 819.72 | L43: 核减2辆，原因为：车辆注册登记信息有误,现场核查不通过
D44: YGM7000BEV | E44: 37 | F44: 3.96 | G44: =E44*F44 -> 146.52 | H44: 37 | I44: 3.96 | J44: =H44*I44 -> 146.52
B45: 5 | C45: 石家庄中博汽车有限公司 | D45: 小计 | E45: =SUM(E46:E48) -> 102 | G45: 1586 | H45: 102 | J45: 1586 | K45: =ROUND(J45,0) -> 1586 | M45: 0 | N45: 0 | O45: =K45-N45 -> 1586
D46: SQ6119BEVP1 | E46: 1 | F46: 30 | G46: =E46*F46 -> 30 | H46: 1 | I46: 30 | J46: =H46*I46 -> 30
D47: SQ6858BEVB81 | E47: 43 | F47: 20 | G47: =E47*F47 -> 860 | H47: 43 | I47: 20 | J47: =H47*I47 -> 860
D48: SQ6858BEVBT8 | E48: 58 | F48: 12 | G48: =E48*F48 -> 696 | H48: 58 | I48: 12 | J48: =H48*I48 -> 696
A49: 山西省 | B49: 合计 | E49: =SUM(E50:E78)/2 -> 1370 | G49: 11751.9254 | H49: 1315 | J49: 11414.7732 | K49: =SUM(K50:K77) -> 11415 | M49: =SUM(M50:M77) -> 13041 | N49: =SUM(N50:N77) -> 4990 | O49: =SUM(O50:O77) -> 6425
B50: 1 | C50: 成都大运汽车集团有限公司 | D50: 小计 | E50: =SUM(E51:E70) -> 1087 | G50: 10140.215 | H50: 1083 | J50: 10101.5748 | K50: =ROUND(J50,0) -> 10102 | M50: 3677 | N50: =M50 -> 3677 | O50: =K50-N50 -> 6425
D51: CGC4250BEV1AADKRCGD | E51: 46 | F51: 15 | G51: =E51*F51 -> 690 | H51: 46 | I51: 15 | J51: =H51*I51 -> 690
D52: CGC5021XXYBEV1W1 | E52: 1 | F52: 6.1716 | G52: 6.1716 | H52: 1 | I52: 6.1714 | J52: 6.1714
D53: CGC5021XXYBEV2W2 | E53: 3 | F53: 6.0264 | G53: 18.0792 | H53: 3 | I53: 6.0264 | J53: 18.0792
D54: CGC5025XXYBEV1NBBFBAML | E54: 3 | F54: 6.0264 | G54: 18.0792 | H54: 3 | I54: 6.0264 | J54: 18.0792
D55: CGC5044XLCBEV1AABJEAHK | E55: 1 | F55: 8.4 | G55: 8.4 | H55: 1 | I55: 8.4 | J55: 8.4
D56: CGC5044XXYBEV1AAAJEAGK | E56: 2 | F56: 6.4152 | G56: 12.8304 | H56: 2 | I56: 6.4152 | J56: 12.8304
D57: CGC5044XXYBEV1AAAJEAGY | E57: 1 | F57: 6.4152 | G57: 6.4152 | H57: 1 | I57: 6.4152 | J57: 6.4152
D58: CGC5044XXYBEV1AAAJEAHY | E58: 1 | F58: 6.4152 | G58: 6.4152 | H58: 1 | I58: 6.4152 | J58: 6.4152
D59: CGC5044XXYBEV1AAAJEAHZ | E59: 176 | F59: 6.4152 | G59: 1129.0752 | H59: 176 | I59: 6.4152 | J59: 1129.0752
D60: CGC5044XXYBEV1CBKLQAPK | E60: 1 | F60: 9.011 | G60: 9.011 | H60: 1 | I60: 9.011 | J60: 9.011
D61: CGC5044XXYBEV1LBSKEAGK | E61: 1 | F61: 7.448 | G61: 7.448 | H61: 1 | I61: 7.448 | J61: 7.448
D62: CGC5044XXYBEV1LBSKEAHK | E62: 2 | F62: 7.448 | G62: 14.896 | H62: 2 | I62: 7.448 | J62: 14.896
D63: CGC5044XXYBEV1NBLJEAGK | E63: 1 | F63: 9.636 | G63: 9.636 | H63: 1 | I63: 9.636 | J63: 9.636
D64: CGC5044XXYBEV1NBLJEAGK | E64: 1 | F64: 9.64 | G64: 9.64 | H64: 1 | I64: 9.64 | J64: 9.64
D65: CGC5044XXYBEV1NBLJEAGK | E65: 379 | F65: 9.66 | G65: 3661.14 | H65: 377 | I65: 9.66 | J65: 3641.82 | L65: 核减2辆，原因为：车辆注册登记信息有误
D66: CGC5044XXYBEV1NBLJEAGY | E66: 446 | F66: 9.64 | G66: 4299.44 | H66: 446 | I66: 9.64 | J66: 4299.44
D67: CGC5044XXYBEV1NBLJEAGY | E67: 6 | F67: 9.66 | G67: 57.96 | H67: 4 | I67: 9.66 | J67: 38.64 | L67: 核减2辆，原因为：车辆注册登记信息有误
D68: CGC5045XXYBEV1CBMGGANL | E68: 3 | F68: 7.954 | G68: 23.862 | H68: 3 | I68: 7.954 | J68: 23.862
D69: CGC5045XXYBEV1Z2 | E69: 12 | F69: 10.143 | G69: 121.716 | H69: 12 | I69: 10.143 | J69: 121.716
D70: CGC6106BEV1PAQHJATM | E70: 1 | F70: 30 | G70: 30 | H70: 1 | I70: 30 | J70: 30
B71: 2 | C71: 山西成功汽车制造有限公司 | D71: 小计 | E71: =SUM(E72:E76) -> 282 | G71: 1581.7104 | H71: 231 | J71: 1283.1984 | K71: =ROUND(J71,0) -> 1283 | M71: 2338 | N71: =K71 -> 1283 | O71: =K71-N71 -> 0
D72: SCH5022XXY-BEV1 | E72: 93 | F72: 5.448 | G72: =E72*F72 -> 506.664 | H72: 93 | I72: 5.448 | J72: =H72*I72 -> 506.664
D73: SCH5022XXY-BEV2 | E73: 41 | F73: 5.952 | G73: =E73*F73 -> 244.032 | H73: 0 | I73: 0 | J73: =H73*I73 -> 0 | L73: 核减41辆，原因为：车辆行驶证注册时间早于推荐目录批次生效时间
D74: SCH5022XXY-BEV5 | E74: 10 | F74: 5.448 | G74: =E74*F74 -> 54.48 | H74: 0 | I74: 0 | J74: =H74*I74 -> 0 | L74: 核减10辆，原因为：车辆行驶证注册时间早于推荐目录批次生效时间
D75: SCH5022XXY-BEV8 | E75: 117 | F75: 5.5752 | G75: =E75*F75 -> 652.2984 | H75: 117 | I75: 5.5752 | J75: =H75*I75 -> 652.2984
D76: SCH5022XXY-BEV9 | E76: 21 | F76: 5.916 | G76: =E76*F76 -> 124.236 | H76: 21 | I76: 5.916 | J76: =H76*I76 -> 124.236
B77: 3 | C77: 山西新能源汽车工业有限公司 | D77: 小计 | E77: =SUM(E78) -> 1 | G77: 30 | H77: 1 | J77: 30 | K77: =ROUND(J77,0) -> 30 | M77: 7026 | N77: =K77 -> 30 | O77: =K77-N77 -> 0
D78: JHC6100BEVG2 | E78: 1 | F78: 30 | G78: =E78*F78 -> 30 | H78: 1 | I78: 30 | J78: =H78*I78 -> 30
A79: 内蒙古自治区 | B79: 合计 | E79: =SUM(E80:E82)/2 -> 8 | G79: 224.94 | H79: 8 | J79: 224.94 | K79: =SUM(K80) -> 225 | M79: =SUM(M80) -> 552 | N79: =SUM(N80) -> 225 | O79: =SUM(O80) -> 0
B80: 1 | C80: 北奔重型汽车集团有限公司 | D80: 小计 | E80: =SUM(E81:E82) -> 8 | G80: 224.94 | H80: 8 | J80: 224.94 | K80: =ROUND(J80,0) -> 225 | M80: 552 | N80: =K80 -> 225 | O80: =K80-N80 -> 0
D81: ND6101PHEVN | E81: 1 | F81: 14.94 | G81: =E81*F81 -> 14.94 | H81: 1 | I81: 14.94 | J81: =H81*I81 -> 14.94
D82: ND6111LEV00 | E82: 7 | F82: 30 | G82: =E82*F82 -> 210 | H82: 7 | I82: 30 | J82: =H82*I82 -> 210
A83: 辽宁省 | B83: 合计 | E83: =SUM(E84:E88)/2 -> 17 | G83: 153.65 | H83: 17 | J83: 153.638 | K83: =SUM(K84) -> 154 | M83: =SUM(M84) -> 2749 | N83: =SUM(N84) -> 154 | O83: =SUM(O84) -> 0
B84: 1 | C84: 丹东黄海汽车有限责任公司 | D84: 小计 | E84: =SUM(E85:E88) -> 17 | G84: 153.65 | H84: 17 | J84: 153.638 | K84: =ROUND(J84,0) -> 154 | M84: 2749 | N84: =K84 -> 154 | O84: =K84-N84 -> 0
D85: DD6109CHEV5N | E85: 1 | F85: 12.6 | G85: =E85*F85 -> 12.6 | H85: 1 | I85: 12.588 | J85: =H85*I85 -> 12.588
D86: DD6120CHEV2N | E86: 1 | F86: 7.65 | G86: =E86*F86 -> 7.65 | H86: 1 | I86: 7.65 | J86: =H86*I86 -> 7.65
D87: DD6129PHEV1N | E87: 14 | F87: 8.1 | G87: =E87*F87 -> 113.4 | H87: 14 | I87: 8.1 | J87: =H87*I87 -> 113.4
D88: DD6851EV4 | E88: 1 | F88: 20 | G88: =E88*F88 -> 20 | H88: 1 | I88: 20 | J88: =H88*I88 -> 20
A89: 大连市 | B89: 合计 | E89: =SUM(E90:E95)/2 -> 290 | G89: 2217.2434 | H89: 0 | J89: 0 | K89: =SUM(K90) -> 0 | M89: =SUM(M90) -> 2464 | N89: =SUM(N90) -> 0 | O89: =SUM(O90) -> 0
B90: 1 | C90: 大连氢锋客车有限公司 | D90: 小计 | E90: =SUM(E91:E95) -> 290 | G90: 2217.2434 | H90: 0 | J90: 0 | K90: =ROUND(J90,0) -> 0 | M90: 2464 | N90: =K90 -> 0 | O90: =K90-N90 -> 0
D91: CA5020XXYBEV31 | E91: 151 | F91: 6.18 | G91: =E91*F91 -> 933.18 | H91: 0 | I91: 0 | J91: =H91*I91 -> 0 | L91: 核减151辆，原因为：车辆注册登记信息有误,现场核查不通过
D92: CA5020XXYBEV32 | E92: 25 | F92: 6.18 | G92: =E92*F92 -> 154.5 | H92: 0 | I92: 0 | J92: =H92*I92 -> 0 | L92: 核减25辆，原因为：现场核查不通过
D93: CA5040XXYBEV31 | E93: 109 | F93: 9.4 | G93: =E93*F93 -> 1024.6 | H93: 0 | I93: 0 | J93: =H93*I93 -> 0 | L93: 核减109辆，原因为：车辆注册登记信息有误,现场核查不通过
D94: CA6103URHEV31 | E94: 2 | F94: 8.064 | G94: =E94*F94 -> 16.128 | H94: 0 | I94: 0 | J94: =H94*I94 -> 0 | L94: 核减2辆，原因为：现场核查不通过
D95: CA6109URBEV34 | E95: 3 | F95: 29.6118 | G95: =E95*F95 -> 88.8354 | H95: 0 | I95: 0 | J95: =H95*I95 -> 0 | L95: 核减3辆，原因为：现场核查不通过
A96: 吉林省 | B96: 合计 | E96: =SUM(E97:E101)/2 -> 306 | G96: 1836.8786 | H96: 223 | J96: 1194.8786 | K96: =SUM(K97:K99) -> 1195 | M96: =SUM(M97:M99) -> 27543 | N96: =SUM(N97:N99) -> 0 | O96: =SUM(O97:O99) -> 1195
B97: 1 | C97: 一汽吉林汽车有限公司 | D97: 小计 | E97: =SUM(E98) -> 223 | G97: 1194.8786 | H97: 223 | J97: 1194.8786 | K97: =ROUND(J97,0) -> 1195 | M97: 0 | N97: 0 | O97: =K97-N97 -> 1195
D98: CA5021XXYEVH1 | E98: 223 | F98: 5.3582 | G98: =E98*F98 -> 1194.8786 | H98: 223 | I98: 5.3582 | J98: =H98*I98 -> 1194.8786
B99: 2 | C99: 中国第一汽车集团公司 | D99: 小计 | E99: =SUM(E100:E101) -> 83 | G99: 642 | H99: 0 | J99: 0 | K99: =ROUND(J99,0) -> 0 | M99: 27543 | N99: =K99 -> 0 | O99: =K99-N99 -> 0
D100: CA6124URBEV22 | E100: 13 | F100: 30 | G100: =E100*F100 -> 390 | H100: 0 | I100: 0 | J100: =H100*I100 -> 0 | L100: 核减13辆，原因为：电池单体和电池系统与推荐目录参数不一致，不符合行驶里程数要求
D101: CA7001EVA | E101: 70 | F101: 3.6 | G101: =E101*F101 -> 252 | H101: 0 | I101: 0 | J101: =H101*I101 -> 0 | L101: 核减70辆，原因为：电池系统能量密度与推荐目录参数不一致
A102: 黑龙江省 | B102: 合计 | E102: =SUM(E103:E106)/2 -> 28 | G102: 411.12 | H102: 24 | J102: 360 | K102: =SUM(K103:K105) -> 360 | M102: =SUM(M103:M105) -> 0 | N102: =SUM(N103:N105) -> 0 | O102: =SUM(O103:O105) -> 360
B103: 1 | C103: 哈尔滨通联客车有限公司 | D103: 小计 | E103: =SUM(E104) -> 26 | G103: 390 | H103: 24 | J103: 360 | K103: =ROUND(J103,0) -> 360 | M103: 0 | N103: 0 | O103: =K103-N103 -> 360
D104: HKC6121CHEV01 | E104: 26 | F104: 15 | G104: =E104*F104 -> 390 | H104: 24 | I104: 15 | J104: =H104*I104 -> 360 | L104: 核减2辆，原因为：车辆注册登记信息有误
B105: 2 | C105: 黑龙江龙华汽车有限公司 | D105: 小计 | E105: =SUM(E106) -> 2 | G105: 21.12 | H105: 0 | J105: 0 | K105: =ROUND(J105,0) -> 0 | M105: 0 | N105: 0 | O105: =K105-N105 -> 0
D106: HLJ6122PHEV | E106: 2 | F106: 10.56 | G106: =E106*F106 -> 21.12 | H106: 0 | I106: 0 | J106: =H106*I106 -> 0 | L106: 核减2辆，原因为：车辆注册登记信息有误
A107: 上海市 | B107: 合计 | E107: =SUM(E108:E130)/2 -> 2004 | G107: 20402.0244 | H107: 1952 | J107: 20116.5044 | K107: =SUM(K108:K124) -> 20117 | M107: =SUM(M108:M124) -> 27513 | N107: =SUM(N108:N124) -> 9904 | O107: =SUM(O108:O124) -> 10213
B108: 1 | C108: 上海汽车集团股份有限公司 | D108: 小计 | E108: =SUM(E109:E113) -> 889 | G108: 3414.6 | H108: 851 | J108: 3303.88 | K108: =ROUND(J108,0) -> 3304 | M108: 20775 | N108: =K108 -> 3304 | O108: =K108-N108 -> 0
D109: CSA6454NDPHEV1 | E109: 157 | F109: 2.4 | G109: =E109*F109 -> 376.8 | H109: 151 | I109: 2.4 | J109: =H109*I109 -> 362.4 | L109: 核减6辆，原因为：车辆注册登记信息有误
D110: CSA6456BEV1 | E110: 525 | F110: 4.84 | G110: =E110*F110 -> 2541 | H110: 517 | I110: 4.84 | J110: =H110*I110 -> 2502.28 | L110: 核减8辆，原因为：车辆注册登记信息有误
D111: CSA7104SDPHEV1 | E111: 80 | F111: 2.4 | G111: =E111*F111 -> 192 | H111: 72 | I111: 2.4 | J111: =H111*I111 -> 172.8 | L111: 核减8辆，原因为：车辆注册登记信息有误,现场核查不通过
D112: CSA7144CDPHEV1 | E112: 23 | F112: 2.4 | G112: =E112*F112 -> 55.2 | H112: 21 | I112: 2.4 | J112: =H112*I112 -> 50.4 | L112: 核减2辆，原因为：车辆注册登记信息有误,现场核查不通过
D113: CSA7154TDPHEV | E113: 104 | F113: 2.4 | G113: =E113*F113 -> 249.6 | H113: 90 | I113: 2.4 | J113: =H113*I113 -> 216 | L113: 核减14辆，原因为：车辆行驶证注册时间早于推荐目录批次生效时间,车辆注册登记信息有误
B114: 2 | C114: 上海汽车商用车有限公司 | D114: 小计 | E114: =SUM(E115:E123) -> 717 | G114: 6744.6 | H114: 704 | J114: 6599.8 | K114: =ROUND(J114,0) -> 6600 | M114: 6738 | N114: =K114 -> 6600 | O114: =K114-N114 -> 0
D115: SH5040XXYA7BEV-4 | E115: 139 | F115: 8.4 | G115: =E115*F115 -> 1167.6 | H115: 137 | I115: 8.4 | J115: =H115*I115 -> 1150.8 | L115: 核减2辆，原因为：不符合行驶里程数要求
D116: SH5040XXYA7BEV-5 | E116: 108 | F116: 7.2 | G116: 777.6 | H116: 101 | I116: 7.2 | J116: 727.2 | L116: 核减7辆，原因为：不符合行驶里程数要求
D117: SH5041XLCA7BEV-7 | E117: 1 | F117: 9.3 | G117: 9.3 | H117: 1 | I117: 9.3 | J117: 9.3
D118: SH5041XXYA7BEV-6 | E118: 64 | F118: 9 | G118: 576 | H118: 63 | I118: 9 | J118: 567 | L118: 核减1辆，原因为：不符合行驶里程数要求
D119: SH5041XXYA7BEV-7 | E119: 80 | F119: 9.3 | G119: 744 | H119: 80 | I119: 9.3 | J119: 744
D120: SH5041XXYA7BEV-D7 | E120: 285 | F120: 9.3 | G120: 2650.5 | H120: 283 | I120: 9.3 | J120: 2631.9 | L120: 核减2辆，原因为：车辆注册登记信息有误
D121: SH6522C1BEV | E121: 6 | F121: 3.6 | G121: 21.6 | H121: 6 | I121: 3.6 | J121: 21.6
D122: SH6612A4FCEV | E122: 12 | F122: 50 | G122: 600 | H122: 11 | I122: 50 | J122: 550 | L122: 核减1辆，原因为：不符合行驶里程数要求
D123: SH6632A4BEV-2 | E123: 22 | F123: 9 | G123: 198 | H123: 22 | I123: 9 | J123: 198
B124: 3 | C124: 上海申龙客车有限公司 | D124: 小计 | E124: =SUM(E125:E130) -> 398 | G124: 10242.8244 | H124: 397 | J124: 10212.8244 | K124: =ROUND(J124,0) -> 10213 | M124: 0 | N124: 0 | O124: =K124-N124 -> 10213
D125: SLK5030XXYBEV3 | E125: 65 | F125: 6.4596 | G125: =E125*F125 -> 419.874 | H125: 65 | I125: 6.4596 | J125: =H125*I125 -> 419.874
D126: SLK6108AEBEVD3 | E126: 149 | F126: 29.268 | G126: 4360.932 | H126: 149 | I126: 29.268 | J126: 4360.932
D127: SLK6108AEBEVS | E127: 7 | F127: 29.8512 | G127: 208.9584 | H127: 7 | I127: 29.8512 | J127: 208.9584
D128: SLK6108ALE0BEVY1 | E128: 45 | F128: 29.268 | G128: 1317.06 | H128: 45 | I128: 29.268 | J128: 1317.06
D129: SLK6118ALD5HEVL1 | E129: 1 | F129: 6 | G129: 6 | H129: 1 | I129: 6 | J129: 6
D130: SLK6118ALE0BEVS6 | E130: 131 | F130: 30 | G130: 3930 | H130: 130 | I130: 30 | J130: 3900 | L130: 核减1辆，原因为：车辆注册登记信息有误
A131: 江苏省 | B131: 合计 | E131: =SUM(E132:E217)/2 -> 3841 | G131: 41534.3274 | H131: 2825 | J131: 29788.2802 | K131: =SUM(K132:K215) -> 29789 | M131: =SUM(M132:M215) -> 22703 | N131: =SUM(N132:N215) -> 13811 | O131: =SUM(O132:O215) -> 15978
B132: 1 | C132: 北汽(常州)汽车有限公司 | D132: 小计 | E132: =SUM(E133:E135) -> 22 | G132: 236.008 | H132: 21 | J132: 225.028 | K132: =ROUND(J132,0) -> 225 | M132: 0 | N132: 0 | O132: =K132-N132 -> 225
D133: BJ5040XXYCJ01EV | E133: 2 | F133: 10.98 | G133: =E133*F133 -> 21.96 | H133: 1 | I133: 10.98 | J133: =H133*I133 -> 10.98 | L133: 核减1辆，原因为：车辆注册登记信息有误
D134: BJ5040XXYCJ03EV | E134: 19 | F134: 10.792 | G134: =E134*F134 -> 205.048 | H134: 19 | I134: 10.792 | J134: =H134*I134 -> 205.048
D135: BJ6600CJ01EV | E135: 1 | F135: 9 | G135: =E135*F135 -> 9 | H135: 1 | I135: 9 | J135: =H135*I135 -> 9
B136: 2 | C136: 北汽新能源汽车常州有限公司 | D136: 小计 | E136: =SUM(E137) -> 391 | G136: 1548.36 | H136: 373 | J136: 1477.08 | K136: =ROUND(J136,0) -> 1477 | M136: 0 | N136: 0 | O136: =K136-N136 -> 1477
D137: BJ7000KPCC-BEV | E137: 391 | F137: 3.96 | G137: =E137*F137 -> 1548.36 | H137: 373 | I137: 3.96 | J137: =H137*I137 -> 1477.08 | L137: 核减18辆，原因为：未按有关要求上传车辆运行数据,车辆注册登记信息有误,需进一步核实后予以清算,需进一步核实后予以清算
B138: 3 | C138: 东风悦达起亚汽车有限公司 | D138: 小计 | E138: =SUM(E139) -> 276 | G138: 1214.4 | H138: 276 | J138: 1214.4 | K138: =ROUND(J138,0) -> 1214 | M138: 9060 | N138: =K138 -> 1214 | O138: =K138-N138 -> 0
D139: YQZ7002BEV | E139: 276 | F139: 4.4 | G139: =E139*F139 -> 1214.4 | H139: 276 | I139: 4.4 | J139: =H139*I139 -> 1214.4
B140: 4 | C140: 江苏常隆客车有限公司 | D140: 小计 | E140: =SUM(E141:E145) -> 84 | G140: 1857.16 | H140: 84 | J140: 1854.538 | K140: =ROUND(J140,0) -> 1855 | M140: 0 | N140: 0 | O140: =K140-N140 -> 1855
D141: YS6100GBEVA | E141: 1 | F141: 30 | G141: =E141*F141 -> 30 | H141: 1 | I141: 27.378 | J141: =H141*I141 -> 27.378
D142: YS6100GBEVC | E142: 20 | F142: 29.268 | G142: =E142*F142 -> 585.36 | H142: 20 | I142: 29.268 | J142: =H142*I142 -> 585.36
D143: YS6101GBEVA | E143: 2 | F143: 30 | G143: =E143*F143 -> 60 | H143: 2 | I143: 30 | J143: =H143*I143 -> 60
D144: YS6860GBEVA | E144: 41 | F144: 20 | G144: =E144*F144 -> 820 | H144: 41 | I144: 20 | J144: =H144*I144 -> 820
D145: YS6860GBEVC | E145: 20 | F145: 18.09 | G145: =E145*F145 -> 361.8 | H145: 20 | I145: 18.09 | J145: =H145*I145 -> 361.8
B146: 5 | C146: 江苏九龙汽车制造有限公司 | D146: 小计 | E146: =SUM(E147:E152) -> 127 | G146: 908.396 | H146: 124 | J146: 896.516 | K146: =ROUND(J146,0) -> 897 | M146: 0 | N146: 0 | O146: =K146-N146 -> 897
D147: HKL5040XXYBEV1 | E147: 1 | F147: 5.412 | G147: =E147*F147 -> 5.412 | H147: 1 | I147: 5.412 | J147: =H147*I147 -> 5.412
D148: HKL5041XXYBEV1 | E148: 4 | F148: 9.287 | G148: 37.148 | H148: 4 | I148: 9.287 | J148: 37.148
D149: HKL6490BEV1 | E149: 98 | F149: 3.96 | G149: 388.08 | H149: 95 | I149: 3.96 | J149: 376.2 | L149: 核减3辆，原因为：车辆注册登记信息有误
D150: HKL6801GBEV | E150: 13 | F150: 19.9065 | G150: 258.7845 | H150: 13 | I150: 19.9065 | J150: 258.7845
D151: HKL6801GBEV2 | E151: 7 | F151: 19.9065 | G151: 139.3455 | H151: 7 | I151: 19.9065 | J151: 139.3455
D152: HKL6802BEV1 | E152: 4 | F152: 19.9065 | G152: 79.626 | H152: 4 | I152: 19.9065 | J152: 79.626
B153: 6 | C153: 江苏陆地方舟新能源车辆股份有限公司 | D153: 小计 | E153: =SUM(E154:E165) -> 681 | G153: 8220.126 | H153: 0 | J153: 0 | K153: =ROUND(J153,0) -> 0 | M153: 0 | N153: 0 | O153: =K153-N153 -> 0
D154: RQ5022XXYEVH9 | E154: 34 | F154: 7.206 | G154: =E154*F154 -> 245.004 | H154: 0 | I154: 0 | J154: =H154*I154 -> 0 | L154: 核减34辆，原因为：车辆注册登记信息有误,现场核查不通过
D155: RQ5022XXYEVHF | E155: 41 | F155: 7.336 | G155: 300.776 | H155: 0 | I155: 0 | J155: 0 | L155: 核减41辆，原因为：现场核查不通过
D156: RQ5022XXYEVHJ | E156: 65 | F156: 7.206 | G156: 468.39 | H156: 0 | I156: 0 | J156: 0 | L156: 核减65辆，原因为：车辆注册登记信息有误,现场核查不通过
D157: RQ5026XXYEVH0 | E157: 46 | F157: 6.24 | G157: 287.04 | H157: 0 | I157: 0 | J157: 0 | L157: 核减46辆，原因为：车辆注册登记信息有误,现场核查不通过
D158: RQ5026XXYEVH0 | E158: 25 | F158: 7.206 | G158: 180.15 | H158: 0 | I158: 0 | J158: 0 | L158: 核减25辆，原因为：车辆注册登记信息有误,现场核查不通过
D159: RQ5026XXYEVH2 | E159: 58 | F159: 6.6024 | G159: 382.9392 | H159: 0 | I159: 0 | J159: 0 | L159: 核减58辆，原因为：现场核查不通过
D160: RQ5026XXYEVH3 | E160: 1 | F160: 7.206 | G160: 7.206 | H160: 0 | I160: 0 | J160: 0 | L160: 核减1辆，原因为：现场核查不通过
D161: RQ5026XXYEVH3 | E161: 96 | F161: 7.336 | G161: 704.256 | H161: 0 | I161: 0 | J161: 0 | L161: 核减96辆，原因为：车辆注册登记信息有误,现场核查不通过
D162: RQ6110YEVH3 | E162: 59 | F162: 27.2448 | G162: 1607.4432 | H162: 0 | I162: 0 | J162: 0 | L162: 核减59辆，原因为：车辆注册登记信息有误,现场核查不通过
D163: RQ6830YEVH10 | E163: 22 | F163: 13.2768 | G163: 292.0896 | H163: 0 | I163: 0 | J163: 0 | L163: 核减22辆，原因为：车辆注册登记信息有误,现场核查不通过
D164: RQ6830YEVH11 | E164: 4 | F164: 12.988 | G164: 51.952 | H164: 0 | I164: 0 | J164: 0 | L164: 核减4辆，原因为：现场核查不通过
D165: RQ6830YEVH8 | E165: 230 | F165: 16.056 | G165: 3692.88 | H165: 0 | I165: 0 | J165: 0 | L165: 核减230辆，原因为：车辆注册登记信息有误,现场核查不通过
B166: 7 | C166: 金龙联合汽车工业（苏州）有限公司 | D166: 小计 | E166: =SUM(E167:E174) -> 55 | G166: 633.4632 | H166: 41 | J166: 544.7652 | K166: =ROUND(J166,0) -> 545 | M166: 0 | N166: 0 | O166: =K166-N166 -> 545
D167: KLQ5022XXYEV1 | E167: 36 | F167: 6.126 | G167: =E167*F167 -> 220.536 | H167: 23 | I167: 6.126 | J167: =H167*I167 -> 140.898 | L167: 核减13辆，原因为：车辆注册登记信息有误
D168: KLQ5040XXYBEV12 | E168: 1 | F168: 9.06 | G168: 9.06 | H168: 0 | I168: 0 | J168: 0 | L168: 核减1辆，原因为：车辆注册登记信息有误
D169: KLQ6109EV0N | E169: 8 | F169: 30 | G169: 240 | H169: 8 | I169: 30 | J169: 240
D170: KLQ6109GAEVW3 | E170: 1 | F170: 29.8512 | G170: 29.8512 | H170: 1 | I170: 29.8512 | J170: 29.8512
D171: KLQ6115HZEV0X3 | E171: 1 | F171: 29.016 | G171: 29.016 | H171: 1 | I171: 29.016 | J171: 29.016
D172: KLQ6601GBEVX6 | E172: 4 | F172: 9 | G172: 36 | H172: 4 | I172: 9 | J172: 36
D173: KLQ6802GEVN1 | E173: 3 | F173: 20 | G173: 60 | H173: 3 | I173: 20 | J173: 60
D174: KLQ6850GAHEVC5K | E174: 1 | F174: 9 | G174: 9 | H174: 1 | I174: 9 | J174: 9
B175: 8 | C175: 南京金龙客车制造有限公司 | D175: 小计 | E175: =SUM(E176:E196) -> 754 | G175: 9846.6482 | H175: 734 | J175: 9722.1018 | K175: =ROUND(J175,0) -> 9722 | M175: 10768 | N175: =K175 -> 9722 | O175: =K175-N175 -> 0
D176: NJL5021XXYBEV26 | E176: 1 | F176: 5.3604 | G176: =E176*F176 -> 5.3604 | H176: 1 | I176: 5.3604 | J176: =H176*I176 -> 5.3604
D177: NJL5022XXYBEV2 | E177: 1 | F177: 5.676 | G177: 5.676 | H177: 1 | I177: 5.676 | J177: 5.676
D178: NJL5031XXYBEV | E178: 2 | F178: 6.4596 | G178: 12.9192 | H178: 2 | I178: 6.4596 | J178: 12.9192
D179: NJL5031XXYBEV1 | E179: 23 | F179: 6.13 | G179: 140.99 | H179: 23 | I179: 6.13 | J179: 140.99
D180: NJL5032XXYBEV | E180: 151 | F180: 6.4596 | G180: 975.3996 | H180: 148 | I180: 6.4596 | J180: 956.0208 | L180: 核减3辆，原因为：车辆注册登记信息有误
D181: NJL5032XXYBEV1 | E181: 170 | F181: 6.13 | G181: 1042.1 | H181: 170 | I181: 6.13 | J181: 1042.1
D182: NJL5032XXYBEV13 | E182: 51 | F182: 6.13 | G182: 312.63 | H182: 34 | I182: 6.13 | J182: 208.42 | L182: 核减17辆，原因为：车辆注册登记信息有误
D183: NJL5032XXYBEV13 | E183: 1 | F183: 6.132 | G183: 6.132 | H183: 1 | I183: 6.132 | J183: 6.132
D184: NJL5032XXYBEV6 | E184: 36 | F184: 6.8304 | G184: 245.8944 | H184: 36 | I184: 6.8304 | J184: 245.8944
D185: NJL5032XXYBEV8 | E185: 25 | F185: 6.8268 | G185: 170.67 | H185: 25 | I185: 6.8268 | J185: 170.67
D186: NJL5032XYZBEV | E186: 1 | F186: 6.4596 | G186: 6.4596 | H186: 1 | I186: 6.4596 | J186: 6.4596
D187: NJL5040XXYBEV1 | E187: 27 | F187: 9.195 | G187: 248.265 | H187: 27 | I187: 9.195 | J187: 248.265
D188: NJL5040XXYBEV22 | E188: 18 | F188: 7.514 | G188: 135.252 | H188: 18 | I188: 7.514 | J188: 135.252
D189: NJL6100BEV28 | E189: 50 | F189: 30 | G189: 1500 | H189: 50 | I189: 30 | J189: 1500
D190: NJL6117BEV31 | E190: 3 | F190: 30 | G190: 90 | H190: 3 | I190: 30 | J190: 90
D191: NJL6117BEV32 | E191: 107 | F191: 30 | G191: 3210 | H191: 107 | I191: 30 | J191: 3210
D192: NJL6806BEV11 | E192: 1 | F192: 18.9 | G192: 18.9 | H192: 1 | I192: 18.9 | J192: 18.9
D193: NJL6806BEV12 | E193: 70 | F193: 20 | G193: 1400 | H193: 70 | I193: 20 | J193: 1400
D194: NJL6806BEV13 | E194: 9 | F194: 20 | G194: 180 | H194: 9 | I194: 19.8936 | J194: 179.0424
D195: NJL6806BEV15 | E195: 1 | F195: 20 | G195: 20 | H195: 1 | I195: 20 | J195: 20
D196: NJL6809BEV11 | E196: 6 | F196: 20 | G196: 120 | H196: 6 | I196: 20 | J196: 120
B197: 9 | C197: 南京汽车集团有限公司 | D197: 小计 | E197: =SUM(E198:E200) -> 1007 | G197: 9628.15 | H197: 764 | J197: 7293.82 | K197: =ROUND(J197,0) -> 7294 | M197: 0 | N197: 0 | O197: =K197-N197 -> 7294
D198: NJ5047XXYCEV1 | E198: 5 | F198: 9.53 | G198: =E198*F198 -> 47.65 | H198: 5 | I198: 9.53 | J198: =H198*I198 -> 47.65
D199: NJ5057XXYCEV3 | E199: 602 | F199: 9.25 | G199: =E199*F199 -> 5568.5 | H199: 470 | I199: 9.25 | J199: =H199*I199 -> 4347.5 | L199: 核减132辆，原因为：车辆注册登记信息有误,需进一步核实后予以清算
D200: NJ5057XXYCEV7 | E200: 400 | F200: 10.03 | G200: =E200*F200 -> 4012 | H200: 289 | I200: 10.03 | J200: =H200*I200 -> 2898.67 | L200: 核减111辆，原因为：车辆注册登记信息有误,需进一步核实后予以清算,需进一步核实后予以清算
... 398 more rows
